bitfinex/quotes_SOLUSD_20250719
["timestamp","ask_amount","ask_price","bid_price","bid_amount"]
[1752955968809,5.62777871,177.69,177.67,2.29674281]
[1752955969015,6.32777871,177.69,177.67,3.59045281]
[1752955969378,5.62777871,177.69,177.67,3.59045281]
[1752955969802,14.06786337,177.71,177.68,3.59045281]
[1752955970025,0.7,177.69,177.68,3.59045281]
[1752955970190,0.7,177.69,177.66,0.72]
[1752955970510,0.7,177.69,177.67,3.59045281]
[1752955971010,5.62809545,177.68,177.66,0.72]
[1752955971221,5.62809545,177.68,177.67,3.59045281]
[1752955971914,5.62787275,177.69,177.67,4.31045281]
[1752955972215,5.62787275,177.69,177.68,3.59045281]
[1752955972508,5.62714534,177.71,177.68,4.31045281]
[1752955972717,5.62714534,177.71,177.7,3.59045281]
[1752955974515,0.7,177.71,177.69,3.59045281]
[1752955975116,0.7,177.7,177.66,26.69]
[1752955975322,0.7,177.7,177.69,3.59045281]
[1752955975828,0.7,177.7,177.68,3.59045281]
[1752955976525,5.62777871,177.69,177.67,3.59045281]
[1752955976729,5.62777871,177.69,177.68,3.59045281]
[1752955977037,5.62756981,177.7,177.68,3.59045281]
[1752955977222,5.62756981,177.7,177.69,3.59045281]
[1752955978327,5.62714534,177.71,177.69,3.59045281]
[1752955979514,5.62714534,177.71,177.68,0.69]
[1752955979718,0.7,177.7,177.68,3.59045281]
[1752955980039,0.7,177.7,177.69,3.59045281]
[1752955980335,6.32714534,177.71,177.69,3.59045281]
[1752955980626,0.7,177.7,177.69,3.59045281]
[1752955980813,0.7,177.7,177.68,3.59045281]
[1752955981403,5.62777871,177.69,177.68,3.59045281]
[1752955984357,9.91823152,177.69,177.64,3.59045281]
[1752955984543,0.7,177.68,177.64,3.59045281]
[1752955984738,41.2,177.68,177.64,3.59045281]
[1752955984937,41.2,177.68,177.62,3.59045281]
[1752955984938,4.29045281,177.67,177.62,3.59045281]
[1752955985127,0.7,177.66,177.62,3.59045281]
[1752955985323,0.7,177.66,177.63,3.59045281]
[1752955985528,42.0629,177.68,177.63,3.59045281]
[1752955985759,0.7,177.65,177.63,3.59045281]
[1752955985938,0.7,177.7,177.64,4.28045281]
[1752955986135,41.2,177.7,177.69,3.59045281]
[1752955986454,41.2,177.7,177.68,3.59045281]
[1752955987152,0.7,177.69,177.68,3.59045281]
[1752955987342,0.06,177.72,177.68,3.59045281]
[1752955987343,40.5,177.7,177.68,3.59045281]
[1752955987649,40.5,177.7,177.68,0.69]
[1752955987865,40.5,177.7,177.69,3.59045281]
[1752955988251,46.12746201,177.7,177.69,3.59045281]
[1752955988449,46.82746201,177.7,177.69,3.59045281]
[1752955988656,46.82746201,177.7,177.68,3.59045281]
[1752955988853,46.12746201,177.7,177.68,3.59045281]
[1752955989053,0.7,177.69,177.68,3.59045281]
[1752955989239,0.7,177.69,177.63,5.6295882]
[1752955989240,46.12746201,177.7,177.66,0.69]
[1752955989438,46.82746201,177.7,177.68,3.59045281]
[1752955990046,46.12746201,177.7,177.68,3.59045281]
[1752955990245,5.62809545,177.68,177.63,0.69]
[1752955990466,41.18,177.67,177.63,3.59045281]
[1752955990667,0.7,177.66,177.64,3.59045281]
[1752955990963,40.48,177.67,177.64,3.59045281]
[1752955990964,0.7,177.65,177.64,3.59045281]
[1752955991756,41.18,177.67,177.64,3.59045281]
[1752955992142,3.59045281,177.69,177.66,3.59045281]
[1752955992143,6.32779307,177.69,177.66,3.59045281]
[1752955992350,46.80779307,177.69,177.66,3.59045281]
[1752955992740,46.80779307,177.69,177.67,3.59045281]
[1752955993533,0.06,177.7,177.68,4.28045281]
[1752955993771,5.68756165,177.7,177.69,3.59045281]
[1752955994583,6.38756165,177.7,177.68,3.59045281]
[1752955996358,5.68756165,177.7,177.69,3.59045281]
[1752955998778,5.68756165,177.7,177.68,3.59045281]
[1752955999382,5.68756165,177.7,177.69,3.59045281]
[1752956000177,0.06,177.7,177.69,3.59045281]
[1752956000575,0.06,177.7,177.69,4.28045281]
[1752956001267,0.06,177.7,177.69,3.59045281]
[1752956001448,0.06,177.7,177.67,0.69]
[1752956001648,0.06,177.7,177.69,3.59045281]
[1752956002257,0.06,177.7,177.69,4.28045281]
[1752956002856,0.06,177.7,177.69,3.59045281]
[1752956004691,0.71,177.7,177.65,0.72]
[1752956004856,0.71,177.7,177.68,3.59045281]
[1752956005880,0.65,177.69,177.64,32.9447]
[1752956006078,0.65,177.69,177.65,0.72]
[1752956006282,0.65,177.69,177.68,3.59045281]
[1752956006579,0.65,177.69,177.67,3.59045281]
[1752956007068,6.27809545,177.68,177.67,3.59045281]
[1752956008860,6.27809545,177.68,177.66,3.59045281]
[1752956009273,6.27809545,177.68,177.64,26.0]
[1752956009463,6.27809545,177.68,177.66,3.59045281]
[1752956010883,6.27841222,177.67,177.66,3.59045281]
[1752956011964,6.27841222,177.67,177.62,1.05]
[1752956012282,0.65,177.66,177.65,3.59045281]
[1752956012464,5.62841222,177.67,177.65,3.59045281]
[1752956012668,6.27841222,177.67,177.65,3.59045281]
[1752956012868,6.27841222,177.67,177.63,26.72]
[1752956013182,6.27841222,177.67,177.65,3.59045281]
[1752956013659,0.65,177.66,177.64,3.59045281]
[1752956013982,41.09,177.66,177.64,3.59045281]
[1752956014384,41.09,177.66,177.63,26.0]
[1752956014589,0.65,177.65,177.62,0.75]
[1752956014777,0.65,177.65,177.64,3.59045281]
[1752956014962,6.27904587,177.65,177.62,0.75]
[1752956015482,6.27904587,177.65,177.64,3.59045281]
[1752956017087,6.27904587,177.65,177.62,0.75]
[1752956017259,0.65,177.64,177.62,0.03]
[1752956017460,0.65,177.64,177.63,3.59045281]
[1752956017969,5.62904587,177.65,177.63,3.59045281]
[1752956018177,6.27904587,177.65,177.63,3.59045281]
[1752956018375,5.62904587,177.65,177.64,3.59045281]
[1752956018685,46.0688274,177.66,177.64,3.59045281]
[1752956018901,46.0688274,177.66,177.65,3.59045281]
[1752956019062,1.5503,177.68,177.65,3.59045281]
[1752956019264,40.42,177.68,177.67,3.59045281]
[1752956019770,41.07,177.68,177.67,3.59045281]
[1752956020075,40.42,177.68,177.67,3.59045281]
[1752956020764,40.42,177.68,177.67,4.31045281]
[1752956021566,40.42,177.68,177.67,0.72]
[1752956021761,40.42,177.68,177.67,3.59045281]
[1752956023889,40.42,177.68,177.67,4.31045281]
[1752956025675,40.42,177.68,177.67,3.59045281]
[1752956026579,40.42,177.69,177.67,3.59045281]
[1752956026889,40.42,177.69,177.68,3.59045281]
[1752956027581,40.4,177.69,177.68,3.59045281]
[1752956027783,5.68755092,177.7,177.68,3.59045281]
[1752956027971,40.4,177.69,177.68,0.72]
[1752956028382,0.06,177.7,177.68,0.72]
[1752956028588,40.46,177.7,177.68,0.72]
[1752956028791,46.08746562,177.7,177.68,0.72]
[1752956029004,40.46,177.7,177.68,0.72]
[1752956029306,40.46,177.7,177.69,3.59045281]
[1752956030295,46.08746201,177.7,177.69,3.59045281]
[1752956031202,41.11,177.7,177.66,0.72]
[1752956031390,41.11,177.7,177.69,3.59045281]
[1752956031785,40.46,177.7,177.69,3.59045281]
[1752956031984,46.08748207,177.7,177.69,3.59045281]
[1752956033306,40.46,177.7,177.69,3.59045281]
[1752956035514,46.08746201,177.7,177.69,3.59045281]
[1752956036106,46.80746201,177.7,177.69,3.59045281]
[1752956040190,46.78746201,177.7,177.69,3.59045281]
[1752956040494,46.78746201,177.7,177.66,0.67]
[1752956040695,0.72,177.69,177.65,26.67]
[1752956040896,0.72,177.69,177.68,3.59045281]
[1752956042398,46.78746201,177.7,177.68,3.59045281]
[1752956042695,46.78746201,177.7,177.69,3.59045281]
[1752956044942,40.44,177.7,177.69,3.59045281]
[1752956046242,0.06,177.7,177.69,4.26045281]
[1752956046427,40.42,177.7,177.69,4.26045281]
[1752956047537,0.06,177.7,177.69,4.26045281]
[1752956053951,0.06,177.7,177.69,9.88823152]
[1752956054338,0.06,177.7,177.69,30.26045281]
[1752956055162,0.06,177.7,177.69,29.59045281]
[1752956056427,0.78,177.7,177.66,0.67]
[1752956056643,41.1,177.7,177.68,3.59045281]
[1752956056853,40.38,177.7,177.69,3.59045281]
[1752956057436,46.72746201,177.7,177.69,3.59045281]
[1752956057755,46.72749215,177.7,177.68,26.0]
[1752956058150,46.72749215,177.7,177.69,3.59045281]
[1752956061551,46.72749215,177.7,177.68,3.59045281]
[1752956061873,0.72,177.69,177.64,0.3]
[1752956062071,40.32,177.68,177.67,3.59045281]
[1752956062260,41.04,177.68,177.63,0.97]
[1752956062464,40.32,177.68,177.67,3.59045281]
[1752956062971,45.94809545,177.68,177.67,3.59045281]
[1752956063177,46.62809545,177.68,177.67,3.59045281]
[1752956064161,46.62809545,177.68,177.65,26.0]
[1752956064365,46.62809545,177.68,177.67,3.59045281]
[1752956064565,41.0,177.68,177.67,3.59045281]
[1752956066375,46.62809545,177.68,177.67,3.59045281]
[1752956070364,41.0,177.68,177.67,3.59045281]
[1752956070890,40.32,177.68,177.67,3.59045281]
[1752956072278,40.32,177.68,177.65,0.69]
[1752956072589,41.0,177.68,177.67,3.59045281]
[1752956072773,40.32,177.68,177.67,3.59045281]
[1752956073883,41.0,177.68,177.67,3.59045281]
[1752956075089,46.62810956,177.68,177.64,26.0]
[1752956075266,0.68,177.67,177.64,26.69]
[1752956075463,41.0,177.68,177.66,3.59045281]
[1752956075696,41.0,177.68,177.67,3.59045281]
[1752956076795,41.0,177.68,177.64,0.69]
[1752956076981,40.32,177.68,177.67,3.59045281]
[1752956077176,45.94825243,177.68,177.65,3.59045281]
[1752956077702,0.68,177.67,177.63,3.59045281]
[1752956077870,40.28,177.66,177.63,3.59045281]
[1752956078070,0.68,177.65,177.62,0.03]
[1752956078270,40.28,177.64,177.62,3.62045281]
[1752956078487,0.68,177.63,177.62,3.62045281]
[1752956080102,40.28,177.63,177.62,4.31045281]
[1752956080270,40.28,177.65,177.62,4.31045281]
[1752956080467,40.28,177.65,177.64,3.59045281]
[1752956082013,40.28,177.65,177.64,4.28045281]
[1752956082404,6.30816273,177.68,177.64,4.28045281]
[1752956082617,40.28,177.67,177.64,0.69]
[1752956082927,40.28,177.67,177.66,3.59045281]
[1752956084016,40.28,177.67,177.65,0.69]
[1752956084206,6.30785194,177.69,177.65,0.69]
[1752956084417,5.62785194,177.69,177.68,3.59045281]
[1752956084715,45.88785194,177.69,177.68,3.59045281]
[1752956085020,46.56785194,177.69,177.68,3.59045281]
[1752956085223,46.56785194,177.69,177.67,3.59045281]
[1752956085524,6.30809545,177.68,177.67,3.59045281]
[1752956088702,6.30809545,177.68,177.62,31.95977601]
[1752956088905,40.26,177.67,177.62,32.64977601]
[1752956089226,40.94,177.67,177.66,3.59045281]
[1752956093931,46.56849232,177.67,177.66,3.59045281]
[1752956097056,15.72501951,177.7,177.66,3.59045281]
[1752956097057,6.30777871,177.69,177.66,3.59045281]
[1752956097257,40.24,177.68,177.63,5.62967478]
[1752956097435,40.24,177.68,177.67,3.59045281]
[1752956099352,0.68,177.68,177.67,3.59045281]
[1752956099654,40.92,177.68,177.67,3.59045281]
[1752956101043,40.92,177.68,177.67,2.29764154]
[1752956101361,46.54809545,177.68,177.67,2.29764154]
[1752956101653,46.54809545,177.68,177.63,26.96]
[1752956101857,45.86809545,177.68,177.67,2.29764154]
[1752956102545,46.54809545,177.68,177.63,32.58967148]
[1752956102742,45.86809545,177.68,177.67,2.29764154]
[1752956103355,46.54809545,177.68,177.67,2.29764154]
[1752956103653,46.54809545,177.68,177.63,26.96]
[1752956103866,0.68,177.67,177.66,2.29764154]
[1752956104854,0.68,177.67,177.64,2.29764154]
[1752956105059,40.22,177.66,177.64,2.29764154]
[1752956105364,40.22,177.65,177.63,26.3]
[1752956105543,40.22,177.65,177.64,2.29764154]
[1752956105745,40.9,177.65,177.64,2.29764154]
[1752956106260,40.22,177.65,177.64,2.29764154]
[1752956106450,46.52904587,177.65,177.64,2.29764154]
[1752956106848,46.52904587,177.65,177.62,0.03]
[1752956107053,0.68,177.64,177.63,2.29764154]
[1752956107943,40.2,177.64,177.63,2.29764154]
[1752956108460,40.2,177.64,177.62,0.03]
[1752956108966,0.68,177.63,177.62,2.32764154]
[1752956109959,6.30967967,177.63,177.62,0.03]
[1752956113991,9.90269699,177.63,177.62,0.03]
[1752956114288,6.30967967,177.63,177.62,0.03]
[1752956115849,9.90269699,177.63,177.62,0.03]
[1752956116667,6.30967967,177.63,177.62,0.03]
[1752956117765,6.30967967,177.63,177.6,0.03]
[1752956117766,6.2605,177.62,177.6,0.03]
[1752956118077,49.42333092,177.61,177.6,0.03]
[1752956118283,50.10333092,177.61,177.6,0.03]
[1752956118684,46.5103136,177.61,177.6,0.03]
[1752956118865,50.10333092,177.61,177.6,0.03]
[1752956124389,46.5103136,177.61,177.6,0.03]
[1752956124599,50.10333092,177.61,177.6,0.03]
[1752956127487,16.78468397,177.6,177.54,0.03]
[1752956127669,3.59301732,177.57,177.54,0.03]
[1752956127980,43.77301732,177.57,177.54,0.03]
[1752956128186,44.47301732,177.57,177.54,0.03]
[1752956128600,68.3909832,177.57,177.56,1e-08]
[1752956131304,72.77947329,177.57,177.56,1e-08]
[1752956131606,11.42629923,177.57,177.56,1e-08]
[1752956131885,48.01328191,177.57,177.56,1e-08]
[1752956132289,51.60629923,177.57,177.56,1e-08]
[1752956134433,0.7,177.57,177.56,3.59301733]
[1752956134594,40.18,177.57,177.56,3.59301733]
[1752956135311,40.18,177.57,177.56,1e-08]
[1752956135519,40.18,177.57,177.56,3.59301733]
[1752956136501,40.18,177.57,177.56,4.25301733]
[1752956137891,40.18,177.59,177.56,9.88483716]
[1752956138116,0.7,177.58,177.56,1e-08]
[1752956138434,40.16,177.57,177.56,1e-08]
[1752956139601,40.86,177.57,177.56,1e-08]
[1752956139818,46.49158191,177.57,177.56,1e-08]
[1752956144218,50.08459923,177.57,177.56,1e-08]
[1752956144433,66.8692832,177.57,177.56,1e-08]
[1752956147125,66.9292832,177.57,177.56,1e-08]
[1752956148041,6.39158191,177.57,177.56,1e-08]
[1752956148243,50.12459923,177.57,177.56,1e-08]
[1752956148444,6.39158191,177.57,177.56,1e-08]
[1752956148645,46.53158191,177.57,177.56,1e-08]
[1752956148849,50.12459923,177.57,177.56,1e-08]
[1752956155123,66.9092832,177.57,177.56,1e-08]
[1752956157219,66.9092832,177.57,177.52,0.03]
[1752956157220,84.58125529,177.57,177.52,0.03]
[1752956157421,3.59301732,177.53,177.52,0.03]
[1752956157731,43.73301732,177.53,177.52,0.03]
[1752956157920,44.42301732,177.53,177.52,0.03]
[1752956158759,3.59301732,177.54,177.52,0.03]
[1752956158936,40.12,177.53,177.52,0.03]
[1752956159131,40.12,177.53,177.52,0.73]
[1752956159456,45.75285078,177.53,177.52,4.32301732]
[1752956159627,45.75285078,177.53,177.52,0.73]
[1752956159830,45.75285078,177.53,177.52,4.32301732]
[1752956160555,18.42197209,177.57,177.52,4.32301732]
[1752956160738,40.12,177.56,177.53,4.29301732]
[1752956161044,45.75189907,177.56,177.53,4.29301732]
[1752956162667,46.44189907,177.56,177.53,0.7]
[1752956162831,45.75189907,177.56,177.53,4.29301732]
[1752956164470,5.69161732,177.57,177.54,0.7]
[1752956164668,40.12,177.56,177.55,3.59301732]
[1752956164963,40.12,177.56,177.54,3.59301732]
[1752956165272,40.12,177.56,177.54,0.7]
[1752956165645,40.81,177.56,177.53,3.59301732]
[1752956166173,40.81,177.56,177.53,4.29301732]
[1752956166560,45.75221627,177.55,177.53,4.29301732]
[1752956166871,40.12,177.54,177.53,4.29301732]
[1752956168769,40.12,177.54,177.53,4.32301732]
[1752956169267,40.1,177.54,177.53,4.32301732]
[1752956172955,40.1,177.54,177.53,3.62301732]
[1752956173294,44.38301732,177.54,177.53,0.03]
[1752956173454,51.59075083,177.54,177.53,1e-08]
[1752956173655,68.3754348,177.54,177.53,1e-08]
[1752956176783,16.78468397,177.53,177.52,1e-08]
[1752956176992,21.06770129,177.53,177.52,1e-08]
[1752956178201,26.70055207,177.53,177.52,1e-08]
[1752956180610,49.34798397,177.52,177.47,0.03]
[1752956180813,16.78468397,177.5,177.47,0.03]
[1752956181135,3.59301732,177.48,177.47,0.03]
[1752956181486,32.5633,177.52,177.47,0.03]
[1752956181819,26.69,177.5,177.47,0.73]
[1752956181984,45.71412023,177.49,177.47,0.03]
[1752956182810,5.63385933,177.5,177.48,4.29301732]
[1752956183100,40.08,177.49,177.48,4.29301732]
[1752956183302,40.08,177.49,177.47,3.62301732]
[1752956183510,40.08,177.49,177.47,4.32301732]
[1752956183901,40.08,177.49,177.48,3.59301732]
[1752956184919,45.71412023,177.49,177.48,3.59301732]
[1752956185693,45.71412023,177.49,177.48,4.29301732]
[1752956185902,40.08,177.49,177.48,4.29301732]
[1752956188018,40.08,177.49,177.48,0.7]
[1752956188331,40.08,177.49,177.48,4.29301732]
[1752956188527,40.08,177.49,177.48,6.33443768]
[1752956188708,40.08,177.5,177.48,7.88603464]
[1752956188916,40.08,177.5,177.49,4.29301732]
[1752956192531,40.08,177.5,177.49,9.92713755]
[1752956193129,5.69259826,177.54,177.49,9.92713755]
[1752956193337,5.69259826,177.54,177.53,3.59301732]
[1752956193338,0.06,177.54,177.53,3.59301732]
[1752956193540,0.06,177.54,177.52,3.59301732]
[1752956193541,40.06,177.53,177.52,3.59301732]
[1752956194635,40.76,177.53,177.5,3.59301732]
[1752956194942,0.7,177.52,177.49,3.59301732]
[1752956195118,40.76,177.51,177.48,3.62301732]
[1752956195320,5.63380281,177.5,177.48,3.62301732]
[1752956195640,40.06,177.49,177.48,3.62301732]
[1752956198041,45.69412023,177.49,177.48,3.62301732]
[1752956198420,40.06,177.49,177.48,3.62301732]
[1752956200647,40.06,177.49,177.48,0.03]
[1752956200850,45.69412023,177.49,177.48,3.62301732]
[1752956202652,40.06,177.49,177.48,3.62301732]
[1752956204139,40.06,177.49,177.48,4.32301732]
[1752956206059,45.69412023,177.49,177.48,3.62301732]
[1752956207355,40.06,177.49,177.48,3.62301732]
[1752956208586,46.39412023,177.49,177.48,0.03]
[1752956212925,46.39412023,177.49,177.48,3.62301732]
[1752956213090,45.69412023,177.49,177.48,3.62301732]
[1752956213286,5.63326553,177.52,177.48,4.32301732]
[1752956213487,40.02,177.51,177.49,0.7]
[1752956213691,40.02,177.51,177.5,4.29301732]
[1752956216792,0.7,177.53,177.5,4.29301732]
[1752956216793,5.63296404,177.53,177.5,4.29301732]
[1752956217096,5.63296404,177.53,177.51,0.7]
[1752956217311,40.02,177.52,177.51,0.7]
[1752956218113,40.02,177.52,177.51,4.29301732]
[1752956218413,40.02,177.52,177.51,3.59301732]
[1752956220725,40.02,177.52,177.51,4.29301732]
[1752956221099,5.69262672,177.54,177.51,4.29301732]
[1752956221310,0.06,177.54,177.53,3.59301732]
[1752956221496,0.06,177.54,177.49,3.59301732]
[1752956221497,49.98555083,177.54,177.49,3.59301732]
[1752956221796,0.7,177.53,177.49,3.59301732]
[1752956221998,0.7,177.53,177.48,0.03]
[1752956221999,40.0,177.52,177.48,0.03]
[1752956222210,0.7,177.51,177.49,3.59301732]
[1752956222396,40.0,177.5,177.49,3.59301732]
[1752956223115,40.0,177.5,177.48,0.03]
[1752956223296,40.0,177.5,177.49,3.59301732]
[1752956225129,45.63380281,177.5,177.48,26.73]
[1752956225307,45.63380281,177.5,177.49,3.59301732]
[1752956225509,45.63380281,177.5,177.48,26.03]
[1752956225826,45.63380281,177.5,177.49,3.59301732]
[1752956226333,46.33380281,177.5,177.49,3.59301732]
[1752956230339,46.33380281,177.5,177.48,0.03]
[1752956230531,0.7,177.49,177.48,0.03]
[1752956231919,6.33412023,177.49,177.48,0.03]
[1752956238611,9.92713755,177.49,177.48,0.03]
[1752956238810,9.92713755,177.49,177.48,1e-08]
[1752956239112,26.71182152,177.49,177.48,1e-08]
[1752956239930,3.59301732,177.48,177.47,1e-08]
[1752956240106,44.27301732,177.48,177.47,1e-08]
[1752956241238,49.907455,177.48,177.47,1e-08]
[1752956241937,46.31443768,177.48,177.47,1e-08]
[1752956242126,49.907455,177.48,177.47,1e-08]
[1752956245976,51.421155,177.48,177.47,1e-08]
[1752956246311,68.20583897,177.48,177.47,1e-08]
[1752956246538,3.59301732,177.45,177.44,0.2]
[1752956246716,43.55301732,177.45,177.44,0.2]
[1752956246915,44.25301732,177.45,177.44,0.2]
[1752956248127,49.88840757,177.45,177.44,0.2]
[1752956249335,46.29539025,177.45,177.44,0.2]
[1752956249523,39.96,177.45,177.44,0.2]
[1752956250340,45.59539025,177.45,177.44,0.2]
[1752956251439,39.96,177.45,177.44,4.51301732]
[1752956255046,39.96,177.45,177.44,10.14872516]
[1752956255616,39.96,177.45,177.44,4.51301732]
[1752956257453,39.96,177.45,177.44,3.79301732]
[1752956259852,39.96,177.45,177.44,0.2]
[1752956260158,39.96,177.45,177.44,3.79301732]
[1752956262140,39.96,177.45,177.44,4.51301732]
[1752956264262,39.96,177.45,177.44,0.92]
[1752956264563,39.96,177.45,177.44,3.79301732]
[1752956265362,39.96,177.45,177.44,0.2]
[1752956265559,39.96,177.45,177.44,3.79301732]
[1752956266830,39.96,177.45,177.44,4.51301732]
[1752956269538,39.96,177.45,177.44,3.79301732]
[1752956271475,39.96,177.45,177.44,0.2]
[1752956271642,39.96,177.45,177.44,3.79301732]
[1752956272137,39.96,177.45,177.44,0.2]
[1752956272138,46.29539025,177.45,177.44,0.2]
[1752956272442,49.88840757,177.45,177.44,0.2]
[1752956277082,66.67309154,177.45,177.44,0.2]
[1752956277240,66.67309154,177.45,177.43,0.03]
[1752956277440,4.31301732,177.44,177.43,0.03]
[1752956277860,21.09770129,177.44,177.43,1e-08]
[1752956278176,26.73340913,177.44,177.43,1e-08]
[1752956281360,16.78468397,177.43,177.42,1e-08]
[1752956281576,57.40468397,177.43,177.42,1e-08]
[1752956281753,21.09770129,177.43,177.42,1e-08]
[1752956281942,5.63570784,177.44,177.42,1e-08]
[1752956282149,0.06,177.46,177.43,3.59301732]
[1752956282478,5.69517727,177.46,177.45,3.59301732]
[1752956282778,49.90819459,177.46,177.42,1e-08]
[1752956282967,0.72,177.45,177.42,1e-08]
[1752956283153,43.49301732,177.44,177.42,1e-08]
[1752956283362,5.63602547,177.43,177.42,1e-08]
[1752956283551,6.35602547,177.43,177.42,1e-08]
[1752956285988,5.63602547,177.43,177.42,1e-08]
[1752956289184,6.35602547,177.43,177.42,1e-08]
[1752956290074,9.94904279,177.43,177.42,1e-08]
[1752956290395,11.55864279,177.43,177.42,1e-08]
[1752956292066,28.34332676,177.43,177.42,1e-08]
[1752956294881,24.75030944,177.43,177.42,1e-08]
[1752956295089,28.34332676,177.43,177.42,1e-08]
[1752956302309,24.75030944,177.43,177.42,1e-08]
[1752956302699,28.34332676,177.43,177.42,1e-08]
[1752956310407,5.63602547,177.43,177.42,1e-08]
[1752956311136,45.49602547,177.43,177.42,4.30301733]
[1752956311514,39.86,177.43,177.42,4.30301733]
[1752956311891,0.06,177.44,177.42,4.30301733]
[1752956312117,0.06,177.44,177.43,3.59301732]
[1752956312304,39.92,177.44,177.43,4.30301732]
[1752956323437,39.92,177.44,177.43,0.71]
[1752956323735,39.92,177.44,177.43,4.30301732]
[1752956327854,39.92,177.44,177.43,3.59301732]
[1752956328947,39.92,177.44,177.43,2.30391895]
[1752956329562,45.55570784,177.44,177.43,2.30391895]
[1752956329715,46.22570784,177.44,177.43,2.30391895]
[1752956330741,46.22570784,177.44,177.42,1e-08]
[1752956330918,46.22570784,177.44,177.43,2.30391895]
[1752956333747,46.22570784,177.44,177.42,2.30391896]
[1752956333957,3.00391895,177.43,177.42,1e-08]
[1752956334637,0.7,177.43,177.42,1e-08]
[1752956336438,6.33602547,177.43,177.42,1e-08]
[1752956337534,9.93805599,177.43,177.42,1e-08]
[1752956339362,6.33602547,177.43,177.42,1e-08]
[1752956340263,5.63602547,177.43,177.42,1e-08]
[1752956340934,5.63602547,177.43,177.42,0.70000001]
[1752956341972,5.63602547,177.43,177.42,4.30203053]
[1752956342130,39.92,177.44,177.42,4.30203053]
[1752956342456,39.92,177.44,177.43,4.30203052]
[1752956345268,45.55570784,177.44,177.43,4.30203052]
[1752956345470,39.92,177.44,177.43,4.30203052]
[1752956348746,39.92,177.44,177.43,3.60203052]
[1752956354452,39.92,177.44,177.42,0.70000001]
[1752956354650,39.92,177.44,177.43,3.60203052]
[1752956357069,39.92,177.44,177.43,2.3038817]
[1752956358865,39.92,177.44,177.43,3.0038817]
[1752956359465,39.92,177.44,177.43,2.3038817]
[1752956364273,39.92,177.44,177.43,3.0038817]
[1752956366980,0.06,177.44,177.43,3.0038817]
[1752956368980,0.06,177.44,177.43,0.7]
[1752956369283,0.06,177.44,177.43,29.0038817]
[1752956374395,0.06,177.44,177.43,3.0038817]
[1752956374773,0.06,177.44,177.43,8.63990717]
[1752956374968,0.06,177.44,177.43,3.0038817]
[1752956375283,0.06,177.44,177.43,2.3038817]
[1752956375484,0.06,177.44,177.43,3.0038817]
[1752956377588,0.06,177.44,177.43,29.0038817]
[1752956378891,0.06,177.44,177.43,34.63990717]
[1752956383411,0.06,177.44,177.43,51.42459114]
[1752956383996,0.06,177.44,177.43,51.72459114]
[1752956384195,0.06,177.44,177.43,49.42070944]
[1752956384510,0.06,177.44,177.43,51.72459114]
[1752956390024,0.06,177.46,177.45,45.08856567]
[1752956390412,0.06,177.46,177.45,45.78856567]
[1752956391725,0.06,177.46,177.45,52.28749494]
[1752956392216,0.06,177.48,177.46,16.78468397]
[1752956392421,0.06,177.48,177.47,68.00409247]
[1752956392617,0.06,177.48,177.47,68.70409247]
[1752956393026,0.06,177.48,177.47,64.37638693]
[1752956393806,0.06,177.48,177.47,70.01114209]
[1752956395123,0.06,177.48,177.47,70.31114209]
[1752956396542,0.06,177.49,177.47,73.07410609]
[1752956396731,0.06,177.49,177.48,7.75514672]
[1752956396929,0.06,177.52,177.49,16.78468397]
[1752956397127,0.06,177.52,177.51,46.38053545]
[1752956397345,0.06,177.52,177.51,46.68053545]
[1752956397836,0.06,177.52,177.51,47.39053545]
[1752956398548,0.06,177.54,177.51,47.39053545]
[1752956398855,0.06,177.54,177.53,20.38053545]
[1752956399012,0.06,177.54,177.53,26.01338623]